[Event "Turkish Youth Teams U18 2024"]
[Site "Karaman"]
[Date "2024.04.24"]
[Round "7"]
[White "Ozkeskin, Nazim Efe"]
[Black "Taspinar, Yanki"]
[Result "0-1"]
[ECO "C58"]
[WhiteElo "1926"]
[BlackElo "2298"]
[Annotator "TA"]
[PlyCount "56"]
[EventDate "2024.04.21"]
[EventType "team-tourn"]
[EventCountry "TUR"]
[SourceTitle "playchess.com"]
[Source "ChessBase"]
[SourceQuality "1"]
[TimeControl "5400+30"]

{[%evp 14,56,39,50,47,21,17,20,16,6,27,22,29,0,11,0,0,-9,-13,-18,-32,-7,0,-24,-6,-2,-12,-19,0,-7,-8,0,-5,-51,-47,-40,0,-104,-88,-490,-495,-934,-861,-1199,-1186]} 1. e4 {[%emt 0:06:00]} e5 {[%emt 0:02:00]} 2. Nf3 {[%emt 0:01:30]} Nc6 {[%emt 0:00:30]} 3. Bc4 {[%emt 0:00:30]} Nf6 {[%emt 0:00:00][%cal Bg8f6,Bf6d5,Bd5f4,Bf4d3][%mdl 32]} 4. Ng5 {[%emt 0:00:30]} d5 {[%emt 0:00:00]} 5. exd5 {[%emt 0:00:30]} Na5 {[%emt 0:00:30]} 6. Bb5+ {[%emt 0:00:30]} c6 {[%emt 0:00:30]} 7. dxc6 {[%emt 0:00:00]} bxc6 {[%emt 0:00:00]} 8. Bd3 {[%emt 0:00:00]} Nd5 {[%emt 0:00:00]} 9. Nf3 {[%emt 0:00:00][%cal Oe1g1]} (9. Nxh7 $2 {loses.} Nf4 10. Be4 f5 $19) 9... Bd6 {[%emt 0:00:00]} 10. O-O {[%emt 0:00:00]} Nf4 {[%emt 0:00:00] The position is equal.} 11. Nc3 {[%emt 0:00:30]} Nxd3 {[%emt 0:00:00]} 12. cxd3 {[%emt 0:00:00][%cal Ob2b4]} O-O {[%emt 0:00:00]} 13. Ne4 {[%emt 0:00:00]} Bc7 {[%emt 0:00:00]} 14. Qc2 {[%emt 0:08:30]} c5 {[%emt 0:00:00]} 15. b3 {[%emt 0:10:30]} Bg4 {[%emt 0:04:30]} 16. Ba3 {[%emt 0:11:30]} Bxf3 {[%emt 0:15:30]} 17. gxf3 {[%emt 0:02:30]} Bb6 {[%emt 0:19:30]} 18. Bxc5 {[%emt 0:15:30]} Rc8 $1 {[%emt 0:01:30] [#] And now ...Bxc5 would win.} 19. d4 {[%emt 0:00:30]} exd4 {[%emt 0:10:30]} 20. Bxb6 {[%emt 0:02:30]} Qxb6 {[%emt 0:07:30]} 21. Qd3 {[%emt 0:00:30]} Nc6 $36 {[%emt 0:06:30][%mdl 2048] Black is pushing.} 22. f4 {[%emt 0:01:30] Prevents Ne5} (22. Ng5 $5 g6 $8 23. f4 $11) 22... Nb4 {[%emt 0:04:30]} 23. Qg3 {[%emt 0:03:30]} (23. Qf3 $11) 23... f5 $15 {[%emt 0:05:30][%mdl 1024] Black has compensation.} 24. Ng5 {[%emt 0:00:30]} Rc6 {[%emt 0:01:30] White must now prevent ...h6.} 25. Kh1 {[%emt 0:02:30]} (25. a3 $11 Nc2 26. Ra2) 25... h6 $17 {[%emt 0:00:30] Black is more active.} 26. Nf3 {[%emt 0:01:30][%mdl 8192]} (26. Nh3 $17) 26... Rg6 $19 {[%emt 0:00:30] Black is clearly winning.} 27. Qh3 {[%emt 0:00:30]} (27. Ng5 $142) 27... Qb7 {[%emt 0:01:30] ...Nd3 is the strong threat.} 28. Rg1 {[%emt 0:01:30] [#]} Nd3 $1 {[%emt 0:00:00][%csl LRf2,LRf4] Weighted Error Value: White=0.72/Black=0.02 (flawless) .  Loses game:     	White=1     	---        Mistake:       	White=3     	---        Inaccurate:     	White=2     	Black=1      OK:         	White=6     	Black=12     Best:        	---       	Black=4      Strong:       	---       	Black=1} 0-1

[Event "Turkish Youth Teams U18 2024"]
[Site "Karaman"]
[Date "2024.04.24"]
[Round "7"]
[White "Yildiz, Tunahan"]
[Black "Saskin, Ayaz"]
[Result "1/2-1/2"]
[ECO "A18"]
[WhiteElo "1881"]
[BlackElo "1696"]
[Annotator "NA RC"]
[PlyCount "48"]
[EventDate "2024.04.21"]
[EventType "team-tourn"]
[EventCountry "TUR"]
[SourceTitle "playchess.com"]
[Source "ChessBase"]
[SourceQuality "1"]
[TimeControl "5400+30"]

1. c4 {[%emt 0:05:00]} e6 {[%emt 0:01:00]} 2. Nc3 {[%emt 0:00:30]} Nf6 {[%emt 0:00:30]} 3. e4 {[%emt 0:00:00]} d5 {[%emt 0:00:30]} 4. e5 {[%emt 0:00:00]} d4 {[%emt 0:00:30]} 5. exf6 {[%emt 0:00:30]} dxc3 {[%emt 0:00:30]} 6. bxc3 {[%emt 0:00:30]} Qxf6 {[%emt 0:00:30]} 7. d4 {[%emt 0:00:00]} e5 {[%emt 0:01:30]} 8. Nf3 {[%emt 0:00:00]} Nc6 {[%emt 0:00:30]} 9. Be2 {[%emt 0:00:00]} h6 {[%emt 0:07:30]} 10. O-O {[%emt 0:06:00]} Bd6 {[%emt 0:03:30]} 11. c5 {[%emt 0:04:30]} Be7 {[%emt 0:00:00]} 12. Bb5 {[%emt 0:10:30]} (12. d5 $16 Nb8 13. Ba3) 12... exd4 {[%emt 0:12:00]} 13. cxd4 {[%emt 0:02:30]} O-O {[%emt 0:00:30]} 14. Be3 {[%emt 0:23:30]} Bg4 {[%emt 0:11:30]} 15. d5 {[%emt 0:24:30]} (15. Bxc6 $11 bxc6 16. h3 Bxf3 17. Qxf3) 15... Ne5 {[%emt 0:12:30]} 16. Be2 {[%emt 0:00:30]} Rfd8 {[%emt 0:06:30]} 17. Rb1 {[%emt 0:10:24]} b6 {[%emt 0:12:30]} 18. d6 $15 {[%emt 0:06:02]} cxd6 {[%emt 0:10:01]} 19. cxb6 {[%emt 0:01:42]} Nxf3+ {[%emt 0:00:30]} 20. Bxf3 {[%emt 0:00:51]} Bxf3 {[%emt 0:00:00]} 21. Qxf3 {[%emt 0:00:51]} Qxf3 {[%emt 0:00:16]} 22. gxf3 {[%emt 0:00:00]} axb6 {[%emt 0:00:15]} 23. Bxb6 {[%emt 0:00:14]} Rdb8 {[%emt 0:00:25]} 24. Rfe1 {[%emt 0:00:03]} Bf6 {[%emt 0:00:40]} 1/2-1/2

[Event "Turkish Youth Teams U18 2024"]
[Site "Karaman"]
[Date "2024.04.24"]
[Round "7"]
[White "Simsek, Ayaz"]
[Black "Bozdag, Armagan Emre"]
[Result "1/2-1/2"]
[ECO "B22"]
[WhiteElo "1867"]
[BlackElo "1716"]
[Annotator "NA RC"]
[PlyCount "94"]
[EventDate "2024.04.21"]
[EventType "team-tourn"]
[EventCountry "TUR"]
[SourceTitle "playchess.com"]
[Source "ChessBase"]
[SourceQuality "1"]
[TimeControl "5400+30"]

1. e4 c5 2. c3 Nf6 3. e5 Nd5 4. Nf3 d6 5. d4 cxd4 6. cxd4 Nc6 7. Bc4 Nb6 8. Bxf7+ {B22: Sicilian: 2 c3.} Kxf7 9. e6+ {is more profitable than 9.Ng5+ at the moment.} Kg8 10. d5 {[#]} h6 11. dxc6 $146 ({Predecessor:} 11. Nc3 Nb4 12. O-O N4xd5 13. Nxd5 Bxe6 14. Nf4 Bf7 15. Re1 e5 16. Ne2 Be7 17. Ng3 {0-1 Agnello,G (2180)-Priehoda,V (2415) Catania op 4th 1993 (3)}) 11... Bxe6 (11... bxc6 $11 12. Qe2 Nd5) 12. cxb7 Rb8 13. O-O Rxb7 14. Nc3 Bf7 15. Ne5 Qe8 16. Qf3 Rb8 17. Nxf7 Qxf7 18. Qxf7+ Kxf7 19. b3 g6 20. Be3 Bg7 21. Rac1 Rhc8 22. Nb5 a5 23. Bxb6 Rxc1 24. Rxc1 Rxb6 25. a4 d5 26. Kf1 Be5 27. Rc8 Bd6 28. Nxd6+ exd6 $11 29. Rc3 Ke6 30. Ke2 d4 31. Rg3 g5 32. Rh3 Ke5 33. Rxh6 Rxb3 34. Rg6 Rb2+ 35. Kf3 Rb3+ (35... Kd5 $1 $15 36. Rxg5+ Kc4) 36. Ke2 $1 Rb2+ 37. Kd3 $11 Kf5 38. Rxd6 Rxf2 39. Rd5+ Kf6 40. g4 Rxh2 41. Kxd4 Rg2 42. Rxa5 Rxg4+ 43. Ke3 Rg3+ 44. Ke4 Ra3 45. Ra6+ Ke7 46. Kf5 Kd7 47. Kxg5 Kc7 1/2-1/2

[Event "Turkish Youth Teams U18 2024"]
[Site "Karaman"]
[Date "2024.04.24"]
[Round "7"]
[White "Cicek, Bilal Emre"]
[Black "Yildiz, Serdar Murat"]
[Result "1/2-1/2"]
[ECO "A13"]
[WhiteElo "1830"]
[BlackElo "2021"]
[Annotator "RC"]
[PlyCount "100"]
[EventDate "2024.04.21"]
[EventType "team-tourn"]
[EventCountry "TUR"]
[SourceTitle "playchess.com"]
[Source "ChessBase"]
[SourceQuality "1"]
[TimeControl "5400+30"]

1. c4 {[%emt 0:01:00]} e6 {[%emt 0:01:00]} 2. g3 {[%emt 0:00:30]} d5 {[%emt 0:00:30]} 3. Bg2 {[%emt 0:00:00]} d4 {[%emt 0:00:00]} 4. Nf3 {[%emt 0:00:00]} c5 {[%emt 0:00:00]} 5. O-O {[%emt 0:00:00]} Nc6 {[%emt 0:00:00]} 6. e3 {[%emt 0:00:00]} Nf6 {[%emt 0:00:00]} 7. exd4 {[%emt 0:00:30]} cxd4 {[%emt 0:00:30]} 8. d3 {[%emt 0:00:00]} Nd7 {[%emt 0:00:00]} 9. Na3 {[%emt 0:04:00]} e5 {[%emt 0:02:00]} 10. Re1 {[%emt 0:00:30]} Be7 {[%emt 0:00:30]} 11. Nc2 {[%emt 0:00:00]} a5 {[%emt 0:09:30]} 12. b3 {[%emt 0:02:00]} O-O {[%emt 0:04:30]} 13. a3 {[%emt 0:01:30]} f6 {[%emt 0:00:30]} 14. Rb1 {[%emt 0:00:30]} Nc5 {[%emt 0:03:30]} 15. b4 {[%emt 0:01:30]} axb4 {[%emt 0:03:30]} 16. axb4 {[%emt 0:00:30]} Na4 {[%emt 0:01:30]} 17. Rb3 {[%emt 0:03:30]} Qb6 {[%emt 0:04:30]} 18. Qd2 {[%emt 0:12:30]} Be6 {[%emt 0:10:30]} 19. Ba3 {[%emt 0:06:30]} Rfd8 {[%emt 0:05:30]} 20. b5 {[%emt 0:12:30]} Bc5 {[%emt 0:11:30]} 21. Bxc5 {[%emt 0:17:30]} Nxc5 {[%emt 0:00:00]} 22. Rbb1 {[%emt 0:01:30]} Na5 {[%emt 0:06:00]} 23. Nb4 {[%emt 0:02:30]} e4 {[%emt 0:06:30]} 24. Nh4 {[%emt 0:03:30]} f5 {[%emt 0:00:30]} 25. dxe4 {[%emt 0:01:30]} Nxc4 {[%emt 0:12:23]} 26. Qg5 {[%emt 0:00:30]} fxe4 {[%emt 0:02:21]} 27. Bxe4 {[%emt 0:05:30]} Nxe4 {[%emt 0:00:53]} 28. Rxe4 {[%emt 0:00:30]} d3 {[%emt 0:07:39]} 29. Nxd3 {[%emt 0:00:30]} Rxd3 {[%emt 0:01:38]} 30. Rbe1 {[%emt 0:00:30]} Rf8 {[%emt 0:01:31]} 31. R1e2 {[%emt 0:01:30]} Rd1+ {[%emt 0:00:52]} 32. Kg2 {[%emt 0:00:30]} Bd5 {[%emt 0:00:28]} 33. Nf5 {[%emt 0:00:30]} Bxe4+ {[%emt 0:00:30]} 34. Rxe4 {[%emt 0:00:30]} Rd7 {[%emt 0:00:30]} 35. Rxc4 {[%emt 0:00:30]} Qf6 {[%emt 0:00:30]} 36. Qxf6 {[%emt 0:00:30]} Rxf6 {[%emt 0:03:04]} 37. g4 {[%emt 0:01:30]} h6 {[%emt 0:01:05]} 38. h4 {[%emt 0:00:30]} h5 {[%emt 0:00:46]} 39. f3 {[%emt 0:00:30]} Kh7 {[%emt 0:00:18]} 40. Re4 {[%emt 0:04:59]} Rdf7 {[%emt 0:01:11]} 41. Kg3 {[%emt 0:00:18]} g6 {[%emt 0:00:22]} 42. Nd4 {[%emt 0:00:43]} hxg4 {[%emt 0:00:51]} 43. Kxg4 {[%emt 0:00:37]} Kg8 {[%emt 0:00:42]} 44. f4 {[%emt 0:01:07]} Rd6 {[%emt 0:00:17]} 45. Nf3 {[%emt 0:03:28]} Rd5 {[%emt 0:01:05]} 46. Re6 {[%emt 0:02:28]} Rxb5 {[%emt 0:00:51]} 47. Ng5 {[%emt 0:00:08]} Rd7 {[%emt 0:00:46]} 48. Rxg6+ {[%emt 0:00:11]} Kf8 {[%emt 0:00:18]} 49. h5 {[%emt 0:00:24]} Rb1 {[%emt 0:00:29]} 50. h6 {[%emt 0:00:27]} Rh1 {[%emt 0:00:00]} 1/2-1/2

[Event "Turkish Youth Teams U18 2024"]
[Site "Karaman"]
[Date "2024.04.24"]
[Round "7"]
[White "Basdar, Atakan"]
[Black "Senel, Hayri Beyhun"]
[Result "0-1"]
[ECO "B40"]
[WhiteElo "1808"]
[BlackElo "1961"]
[Annotator "TA"]
[PlyCount "108"]
[EventDate "2024.04.21"]
[EventType "team-tourn"]
[EventCountry "TUR"]
[SourceTitle "playchess.com"]
[Source "ChessBase"]
[SourceQuality "1"]
[TimeControl "5400+30"]

{[%evp 9,108,-3,-7,-18,0,-18,-16,-22,-19,-20,-22,-57,-60,-65,-65,-65,-51,-34,-53,-95,-72,-125,-110,-128,-127,-112,-122,-121,-120,-110,-118,-156,-161,-137,-133,-175,-186,-180,-174,-176,-178,-187,-126,-200,-194,-191,-177,-190,-192,-173,-148,-197,-185,-205,-188,-220,-222,-222,-236,-239,-224,-289,-281,-298,-296,-327,-316,-438,-251,-362,-284,-321,-294,-285,-278,-284,-305,-312,-301,-292,-295,-302,-305,-393,-406,-416,-366,-390,-377,-495,-475,-1412,-792,-29970,-29971,-29969,-29973,-29973,-29974,-29974,-29975]} 1. e4 {[%emt 0:01:00]} c5 {[%emt 0:07:00]} 2. Nf3 {[%emt 0:00:00]} e6 {[%emt 0:00:30]} 3. c3 {[%emt 0:00:00]} Nf6 {[%emt 0:02:30]} 4. Bd3 {[%emt 0:01:30]} d5 {[%emt 0:11:30]} 5. exd5 {[%emt 0:02:30]} Qxd5 {[%emt 0:02:30]} 6. Bc2 {[%emt 0:04:30]} Nc6 {[%emt 0:03:30]} 7. d4 {[%emt 0:09:30]} cxd4 {[%emt 0:03:30]} 8. cxd4 {[%emt 0:00:30] The position is equal.} Bb4+ {[%emt 0:04:30]} 9. Nc3 {[%emt 0:03:30]} Qc4 {[%emt 0:11:30]} 10. Qd2 {[%emt 0:07:30]} Nd5 {[%emt 0:07:30][%cal Rd5c3]} 11. Bd3 {[%emt 0:00:30] [#]} Qxc3 {[%emt 0:02:30]} 12. bxc3 {[%emt 0:00:30]} Bxc3 {[%emt 0:00:30]} 13. Qxc3 {[%emt 0:03:30]} Nxc3 {[%emt 0:00:00] A dynamic duo of knights.} 14. Bd2 {[%emt 0:00:30]} Nd5 {[%emt 0:01:00]} 15. Bb5 {[%emt 0:03:30]} (15. O-O $142) 15... Bd7 $17 {[%emt 0:00:30]} 16. Rb1 {[%emt 0:02:30]} f6 {[%emt 0:04:30]} 17. O-O {[%emt 0:03:30]} Kf7 {[%emt 0:05:30]} 18. Rfc1 {[%emt 0:04:30]} Rhc8 {[%emt 0:02:30]} 19. a4 {[%emt 0:05:30]} Rc7 {[%emt 0:08:30]} 20. Rb2 {[%emt 0:03:30]} Rac8 {[%emt 0:00:52][%cal Oc6d4]} 21. Rcb1 {[%emt 0:02:30]} Nd8 {[%emt 0:02:58]} 22. Bd3 {[%emt 0:02:30]} Bxa4 {[%emt 0:02:19] ...Bc2 would now be deadly.} 23. Ra2 {[%emt 0:02:30]} Bc2 {[%emt 0:05:14]} 24. Bxc2 {[%emt 0:01:30]} Rxc2 {[%emt 0:00:30]} 25. Rxa7 {[%emt 0:00:00]} Nc3 {[%emt 0:02:15]} (25... R8c7 $19 26. h4 Nc3 27. Bxc3 R2xc3) 26. Re1 {[%emt 0:01:00]} (26. Bxc3 $17 R8xc3 (26... R2xc3 27. h4 $15) 27. Raa1) 26... Nb5 $19 {[%emt 0:02:26]} 27. Ra4 {[%emt 0:00:30]} R2c4 {[%emt 0:00:32]} 28. Rxc4 {[%emt 0:02:30]} Rxc4 {[%emt 0:00:02]} 29. Be3 {[%emt 0:00:30]} Nd6 {[%emt 0:01:53]} 30. g4 {[%emt 0:01:30]} (30. Rd1 $17 {keeps fighting.}) 30... Nc6 {[%emt 0:01:09]} 31. h3 {[%emt 0:01:30]} Ne7 {[%emt 0:02:01]} 32. Bf4 {[%emt 0:01:30]} Nb5 {[%emt 0:00:55]} 33. Be3 {[%emt 0:01:30]} Nd5 {[%emt 0:00:15]} 34. Rb1 {[%emt 0:00:30]} Nd6 {[%emt 0:00:20]} 35. Bd2 {[%emt 0:00:30]} b5 {[%emt 0:00:37]} 36. Kf1 {[%emt 0:00:30]} Ra4 {[%emt 0:00:30]} 37. Ke1 {[%emt 0:00:30]} Ra3 {[%emt 0:01:07]} 38. Ke2 {[%emt 0:02:30]} Ra2 {[%emt 0:00:30]} (38... Ne4 $142 39. Rb2 Ndc3+ 40. Bxc3 Nxc3+ 41. Kf1 Na4 42. Rxb5 Rxf3) 39. Ke1 {[%emt 0:00:30]} (39. Kd3 {was called for.}) 39... Ra4 {[%emt 0:01:09]} 40. Ke2 {[%emt 0:01:30]} Ke7 {[%emt 0:00:01]} 41. Rb3 {[%emt 0:00:30]} Kd7 {[%emt 0:00:25]} 42. Kd3 {[%emt 0:01:30]} Kc6 {[%emt 0:00:13]} 43. Ne1 {[%emt 0:00:30]} Nc4 {[%emt 0:00:42]} 44. Nc2 {[%emt 0:01:30]} Nxd2 {[%emt 0:01:55]} 45. Kxd2 {[%emt 0:00:00][%mdl 4096] Endgame. KRN-KRN} b4 {[%emt 0:00:03]} 46. Kd3 {[%emt 0:01:00]} Kb5 {[%emt 0:00:08]} 47. h4 {[%emt 0:01:30]} Ra7 {[%emt 0:00:35]} 48. Rb2 {[%emt 0:00:30]} Rc7 {[%emt 0:00:51]} 49. Ke4 {[%emt 0:01:30]} Ka4 {[%emt 0:01:20]} 50. f4 {[%emt 0:00:30]} (50. Nxb4 $142 Nxb4 51. Rb1) 50... b3 {[%emt 0:00:19]} 51. Na1 {[%emt 0:01:30]} Rc3 {[%emt 0:00:13][%csl Gd5][%cal Rc3e3] Black mates.} 52. Rxb3 {[%emt 0:00:30]} Rxb3 {[%emt 0:00:30]} 53. Nxb3 {[%emt 0:00:30]} Kxb3 {[%emt 0:00:00]} 54. f5 {[%emt 0:00:00]} exf5+ {[%emt 0:01:02] Weighted Error Value: White=0.43/Black=0.23 (precise) .  Mistake:       	White=5     	Black=2      Inaccurate:     	White=7     	Black=1      OK:         	White=8     	Black=25     Best:        	---       	Black=2} 0-1

[Event "Turkish Youth Teams U18 2024"]
[Site "Karaman"]
[Date "2024.04.24"]
[Round "7"]
[White "Eracar, Ali Arda"]
[Black "Durucay, Uygar"]
[Result "0-1"]
[ECO "A07"]
[WhiteElo "1738"]
[BlackElo "1995"]
[Annotator "TA"]
[PlyCount "88"]
[EventDate "2024.04.21"]
[EventType "team-tourn"]
[EventCountry "TUR"]
[SourceTitle "playchess.com"]
[Source "ChessBase"]
[SourceQuality "1"]
[TimeControl "5400+30"]

{[%evp 16,88,19,18,4,9,16,14,26,19,37,9,23,21,36,-8,0,-14,-7,-33,-4,-36,-10,-56,-43,-74,-41,-76,-91,-97,-79,-182,-178,-188,-163,-195,-183,-188,-186,-337,-177,-354,-375,-375,-370,-378,-368,-368,-403,-403,-385,-375,-338,-544,-623,-625,-621,-690,-689,-695,-679,-824,-817,-855,-840,-966,-1020,-1020,-1020,-1006,-1003,-969,-968,-919,-911]} 1. Nf3 {[%emt 0:06:00]} Nf6 {[%emt 0:01:00]} 2. g3 {[%emt 0:00:30]} d5 {[%emt 0:00:30]} 3. Bg2 {[%emt 0:00:00]} c6 {[%emt 0:00:30]} 4. O-O {[%emt 0:00:00]} Bg4 {[%emt 0:00:30]} 5. d3 {[%emt 0:00:30]} Nbd7 {[%emt 0:00:30]} 6. Qe1 {[%emt 0:00:00]} e5 {[%emt 0:00:00]} 7. e4 {[%emt 0:00:00]} dxe4 {[%emt 0:00:00]} 8. dxe4 {[%emt 0:00:00]} Bc5 {[%emt 0:02:30]} 9. Nbd2 {[%emt 0:00:00]} Qc7 {[%emt 0:00:30]} 10. a4 {[%emt 0:01:30]} O-O {[%emt 0:00:30]} 11. h3 {[%emt 0:02:30]} Bh5 {[%emt 0:01:30] The position is equal.} 12. Nh4 {[%emt 0:05:30]} Rfe8 {[%emt 0:01:30]} 13. Nc4 {[%emt 0:01:30]} b5 {[%emt 0:05:30]} 14. Ne3 {[%emt 0:12:30]} a6 {[%emt 0:01:30]} 15. Nhf5 {[%emt 0:05:30]} Bf8 {[%emt 0:05:30]} 16. a5 {[%emt 0:13:30]} Nc5 {[%emt 0:01:30]} 17. f3 {[%emt 0:00:30]} Bg6 {[%emt 0:01:30]} 18. Bd2 {[%emt 0:08:30]} Rad8 {[%emt 0:01:30]} 19. Rd1 {[%emt 0:09:30]} (19. Nh4 $11) 19... Ne6 {[%emt 0:04:30]} 20. Kh1 {[%emt 0:09:30]} Nh5 {[%emt 0:00:30]} 21. Kh2 {[%emt 0:02:30]} f6 {[%emt 0:06:30] Black converts the advantage convincingly.} 22. h4 {[%emt 0:03:10]} Bf7 {[%emt 0:00:30] Black is much more active.} 23. g4 {[%emt 0:02:37] Wards off g6} (23. Ng4 $17) 23... Nhf4 $19 {[%emt 0:00:30]} 24. Ng3 {[%emt 0:00:13]} Bc5 {[%emt 0:03:30]} 25. Bc3 {[%emt 0:03:59]} Rxd1 {[%emt 0:01:30]} 26. Nxd1 {[%emt 0:00:02]} Rd8 {[%emt 0:02:30][%cal Ob5b4]} 27. b3 $2 {[%emt 0:02:46]} (27. Ne3) 27... Qd7 {[%emt 0:04:30]} (27... b4 $142 28. Bd2 Nd4 (28... Qxa5 $2 29. Nf5 $19)) 28. Nb2 $2 {[%emt 0:01:17] [#]} (28. Nf5) 28... b4 $1 {[%emt 0:01:30][%mdl 512]} 29. Bxb4 {[%emt 0:02:12]} Bxb4 {[%emt 0:00:30]} 30. Qxb4 {[%emt 0:00:00]} Qd2 {[%emt 0:00:00]} 31. Qxd2 {[%emt 0:01:39]} Rxd2 {[%emt 0:00:00]} 32. Rg1 {[%emt 0:00:00]} Rxc2 {[%emt 0:00:30]} 33. Nc4 {[%emt 0:04:03]} Nd4 {[%emt 0:00:30][%csl LRb3,LRc4,LRf3]} 34. Kh1 $2 {[%emt 0:00:46] [#]} (34. Ne3 Rb2 (34... Nxf3+ $2 35. Kh1 $19) 35. Kh1) 34... Bxc4 {[%emt 0:03:30] Black is clearly winning.} 35. bxc4 {[%emt 0:00:03]} g6 {[%emt 0:00:30] Wards off Nf5} 36. h5 {[%emt 0:02:06]} Kg7 {[%emt 0:00:30]} 37. hxg6 {[%emt 0:01:02]} hxg6 {[%emt 0:00:30]} 38. Nf1 {[%emt 0:01:37]} Nde2 {[%emt 0:00:30] A dynamic duo of knights.} 39. Ne3 {[%emt 0:00:14]} Rc3 {[%emt 0:00:30][%cal Oe2g1]} 40. Nd1 {[%emt 0:00:25]} Rc1 {[%emt 0:00:30]} 41. Re1 {[%emt 0:01:01]} Nc3 {[%emt 0:00:00]} 42. Bf1 {[%emt 0:01:20]} Rxd1 {[%emt 0:00:00]} 43. Rxd1 {[%emt 0:00:00]} Nxd1 {[%emt 0:00:00]} 44. c5 {[%emt 0:00:19]} Nf2+ {[%emt 0:00:00] Weighted Error Value: White=0.46/Black=0.12 (very precise) .  Mistake:       	White=5     	Black=1      Inaccurate:     	White=5     	Black=2      OK:         	White=7     	Black=12     Best:        	White=1     	Black=1} 0-1

[Event "Turkish Youth Teams U18 2024"]
[Site "Karaman"]
[Date "2024.04.24"]
[Round "7"]
[White "Sadik, Muhammed Selim"]
[Black "Orhon, Bora"]
[Result "0-1"]
[ECO "D26"]
[WhiteElo "1737"]
[BlackElo "1997"]
[Annotator "RC"]
[PlyCount "110"]
[EventDate "2024.04.21"]
[EventType "team-tourn"]
[EventCountry "TUR"]
[SourceTitle "playchess.com"]
[Source "ChessBase"]
[SourceQuality "1"]
[TimeControl "5400+30"]

1. d4 {[%emt 0:01:00]} d5 {[%emt 0:04:00]} 2. Nf3 {[%emt 0:00:00]} Nf6 {[%emt 0:00:00]} 3. c4 {[%emt 0:00:00]} dxc4 {[%emt 0:01:00]} 4. e3 {[%emt 0:00:30]} e6 {[%emt 0:00:30]} 5. Bxc4 {[%emt 0:00:00]} c5 {[%emt 0:00:30]} 6. O-O {[%emt 0:00:00]} cxd4 {[%emt 0:00:00]} 7. exd4 {[%emt 0:01:30]} Be7 {[%emt 0:00:00]} 8. Nc3 {[%emt 0:00:30]} O-O {[%emt 0:00:30]} 9. Qe2 {[%emt 0:07:30]} Nc6 {[%emt 0:00:30]} 10. Rd1 {[%emt 0:00:00]} Na5 {[%emt 0:00:30]} 11. Bd3 {[%emt 0:02:00]} b6 {[%emt 0:00:30]} 12. Bg5 {[%emt 0:03:30]} Bb7 {[%emt 0:01:30]} 13. Rac1 {[%emt 0:00:30]} Rc8 {[%emt 0:04:30]} 14. h3 {[%emt 0:07:30]} Nc6 {[%emt 0:07:30]} 15. a3 {[%emt 0:03:30]} h6 {[%emt 0:28:30]} 16. Bh4 {[%emt 0:07:30]} Nh5 {[%emt 0:07:30]} 17. Qe4 {[%emt 0:11:30]} g6 {[%emt 0:01:30]} 18. Bxe7 {[%emt 0:03:30]} Qxe7 {[%emt 0:00:00]} 19. Qe3 {[%emt 0:01:30]} Kg7 {[%emt 0:02:00]} 20. d5 {[%emt 0:07:30]} exd5 {[%emt 0:00:30]} 21. Nxd5 {[%emt 0:00:30]} Qxe3 {[%emt 0:00:30]} 22. Nxe3 {[%emt 0:00:30]} Nf4 {[%emt 0:01:30]} 23. Bf1 {[%emt 0:00:30]} Rfd8 {[%emt 0:03:30]} 24. Nc4 {[%emt 0:06:30]} Ne7 {[%emt 0:04:30]} 25. Rxd8 {[%emt 0:10:30]} Rxd8 {[%emt 0:00:30]} 26. Kh2 {[%emt 0:03:30]} Bxf3 {[%emt 0:03:30]} 27. gxf3 {[%emt 0:00:30]} Nf5 {[%emt 0:03:30]} 28. Ne3 {[%emt 0:02:30]} Nh4 {[%emt 0:07:49]} 29. Rc7 {[%emt 0:07:40]} g5 {[%emt 0:06:42]} 30. Bc4 {[%emt 0:10:35]} Nxf3+ {[%emt 0:02:43]} 31. Kg3 {[%emt 0:00:05]} Ne5 {[%emt 0:00:34]} 32. Rxa7 {[%emt 0:03:00]} Rd2 {[%emt 0:03:55]} 33. h4 {[%emt 0:00:38]} Rxb2 {[%emt 0:01:22]} 34. hxg5 {[%emt 0:00:39]} hxg5 {[%emt 0:00:05]} 35. Bd5 {[%emt 0:00:22]} Rb1 {[%emt 0:01:54]} 36. Re7 {[%emt 0:00:29]} Kf6 {[%emt 0:00:59]} 37. Re8 {[%emt 0:00:21]} Rg1+ {[%emt 0:00:32]} 38. Bg2 {[%emt 0:00:39]} Ra1 {[%emt 0:00:57]} 39. Kh2 {[%emt 0:00:20]} Ra2 {[%emt 0:00:59]} 40. Kg1 {[%emt 0:00:39]} Ned3 {[%emt 0:00:41]} 41. Ng4+ {[%emt 0:00:48]} Kg7 {[%emt 0:00:01]} 42. Bf1 {[%emt 0:00:08]} Rxa3 {[%emt 0:00:21]} 43. Rb8 {[%emt 0:00:35]} Ra1 {[%emt 0:00:51]} 44. Ne3 {[%emt 0:00:30]} Rb1 {[%emt 0:00:30]} 45. Nf5+ {[%emt 0:00:30]} Kf6 {[%emt 0:00:30]} 46. Ng3 {[%emt 0:00:30]} Nh3+ {[%emt 0:00:30]} 47. Kg2 {[%emt 0:00:30]} Ndf4+ {[%emt 0:00:30]} 48. Kh2 {[%emt 0:00:30]} Nxf2 {[%emt 0:00:07]} 49. Rc8 {[%emt 0:00:56]} Rb3 {[%emt 0:00:30]} 50. Rc6+ {[%emt 0:00:30]} Ke5 {[%emt 0:00:30]} 51. Be2 {[%emt 0:00:30]} Nxe2 {[%emt 0:00:30]} 52. Nxe2 {[%emt 0:00:30]} Rb2 {[%emt 0:00:30]} 53. Ng1 {[%emt 0:00:30]} Ne4+ {[%emt 0:00:30]} 54. Kh3 {[%emt 0:00:00]} g4+ {[%emt 0:00:15]} 55. Kh4 {[%emt 0:00:40]} Rh2+ {[%emt 0:00:30]} 0-1